fUSD/lending_fUSD_20260613
["ID","MTS","AMOUNT","RATE_DAILY","PERIOD"]
[424930202,1781285456000,-151.0,0.00014908,2]
[424930203,1781285456000,-151.0,0.00014908,2]
[424930204,1781285456000,-151.0,0.00014908,2]
[424930208,1781285456000,-151.0,0.00014908,2]
[424930206,1781285456000,-151.0,0.00014908,2]
[424930207,1781285456000,-151.0,0.00014908,2]
[424930211,1781285456000,-890.431161,0.00014908,2]
[424930209,1781285456000,-151.0,0.00014908,2]
[424930213,1781285456000,-256.16262184,0.00014908,2]
[424930215,1781285456000,-152.656123,0.00014908,2]
[424930212,1781285456000,-634.26853916,0.00014908,2]
[424930214,1781285456000,-890.431161,0.00014908,2]
[424930216,1781285456000,-862.10446476,0.00014908,2]
[424930210,1781285456000,-151.0,0.00014908,2]
[424930217,1781285524000,-2157.14243826,9.996e-05,2]
[424930219,1781285545000,-2157.14243826,9.996e-05,2]
[424930222,1781285722000,-200.0,9.8e-05,3]
[424930223,1781285776000,-500.0,9.9e-05,3]
[424930224,1781285829000,-175.987,9.796e-05,2]
[424930225,1781285882000,-811.396,9.796e-05,2]
[424930226,1781285937000,-160.0,9.895e-05,2]
[424930227,1781285989000,-514.86877568,9.992e-05,2]
[424930228,1781286043000,-500.0,9.992e-05,2]
[424930229,1781286096000,-360.40814297,9.991e-05,2]
[424930230,1781286123000,-640.0,9.896e-05,2]
[424930232,1781286151000,-1425.08,9.896e-05,2]
[424930235,1781286176000,-434.92,9.779e-05,2]
[424930256,1781286344000,-158.41,9.489e-05,2]
[424930257,1781286344000,-154.9914969,9.489e-05,2]
[424930258,1781286438000,-990.78,9.45e-05,2]
[424930259,1781286439000,-320.61499995,9.489e-05,2]
[424930260,1781286439000,-250.73208046,9.489e-05,2]
[424930261,1781286493000,-400.0,9.6e-05,3]
[424930262,1781286545000,-973.4,9.1e-05,2]
[424930263,1781286554000,-427.76142269,9.489e-05,2]
[424930264,1781286554000,-250.0,9.545e-05,2]
[424930266,1781286554000,-252.28570008,9.718e-05,2]
[424930267,1781286554000,-500.0,9.718e-05,2]
[424930268,1781286554000,-500.0,9.718e-05,2]
[424930269,1781286554000,-500.0,9.718e-05,2]
[424930265,1781286554000,-800.0,9.7e-05,3]
[424930270,1781286554000,-500.0,9.718e-05,2]
[424930273,1781286554000,-256.53220928,9.718e-05,2]
[424930272,1781286554000,-500.0,9.718e-05,2]
[424930274,1781286554000,-748.6170008,9.718e-05,2]
[424930276,1781286554000,-11.84951167,9.718e-05,2]
[424930275,1781286554000,-748.6170008,9.718e-05,2]
[424930271,1781286554000,-200.0,9.718e-05,2]
[424930277,1781286600000,-736.76748913,9.718e-05,2]
[424930308,1781286632000,-748.6170008,9.718e-05,2]
[424930300,1781286632000,-748.6170008,9.718e-05,2]
[424930299,1781286632000,-748.6170008,9.718e-05,2]
[424930301,1781286632000,-748.6170008,9.718e-05,2]
[424930302,1781286632000,-748.6170008,9.718e-05,2]
[424930303,1781286632000,-748.6170008,9.718e-05,2]
[424930304,1781286632000,-748.6170008,9.718e-05,2]
[424930309,1781286632000,-748.6170008,9.718e-05,2]
[424930314,1781286632000,-748.6170008,9.718e-05,2]
[424930306,1781286632000,-748.6170008,9.718e-05,2]
[424930307,1781286632000,-748.6170008,9.718e-05,2]
[424930310,1781286632000,-748.6170008,9.718e-05,2]
[424930312,1781286632000,-748.6170008,9.718e-05,2]
[424930311,1781286632000,-748.6170008,9.718e-05,2]
[424930313,1781286632000,-748.6170008,9.718e-05,2]
[424930296,1781286632000,-748.6170008,9.718e-05,2]
[424930305,1781286632000,-748.6170008,9.718e-05,2]
[424930298,1781286632000,-748.6170008,9.718e-05,2]
[424930292,1781286632000,-748.6170008,9.718e-05,2]
[424930295,1781286632000,-748.6170008,9.718e-05,2]
[424930278,1781286632000,-748.6170008,9.718e-05,2]
[424930279,1781286632000,-748.6170008,9.718e-05,2]
[424930280,1781286632000,-748.6170008,9.718e-05,2]
[424930283,1781286632000,-748.6170008,9.718e-05,2]
[424930281,1781286632000,-748.6170008,9.718e-05,2]
[424930284,1781286632000,-748.6170008,9.718e-05,2]
[424930285,1781286632000,-748.6170008,9.718e-05,2]
[424930297,1781286632000,-748.6170008,9.718e-05,2]
[424930286,1781286632000,-748.6170008,9.718e-05,2]
[424930315,1781286632000,-748.6170008,9.718e-05,2]
[424930290,1781286632000,-748.6170008,9.718e-05,2]
[424930288,1781286632000,-748.6170008,9.718e-05,2]
[424930291,1781286632000,-748.6170008,9.718e-05,2]
[424930289,1781286632000,-748.6170008,9.718e-05,2]
[424930293,1781286632000,-748.6170008,9.718e-05,2]
[424930294,1781286632000,-748.6170008,9.718e-05,2]
[424930287,1781286632000,-748.6170008,9.718e-05,2]
[424930318,1781286632000,-748.6170008,9.718e-05,2]
[424930282,1781286632000,-748.6170008,9.718e-05,2]
[424930319,1781286632000,-748.6170008,9.718e-05,2]
[424930339,1781286632000,-741.37232016,9.718e-05,2]
[424930344,1781286632000,-741.37232016,9.718e-05,2]
[424930336,1781286632000,-741.37232016,9.718e-05,2]
[424930337,1781286632000,-741.37232016,9.718e-05,2]
[424930345,1781286632000,-741.37232016,9.718e-05,2]
[424930346,1781286632000,-741.37232016,9.718e-05,2]
[424930354,1781286632000,-500.0,9.718e-05,2]
[424930353,1781286632000,-500.0,9.718e-05,2]
[424930355,1781286632000,-500.0,9.718e-05,2]
[424930356,1781286632000,-500.0,9.718e-05,2]
[424930352,1781286632000,-500.0,9.718e-05,2]
[424930349,1781286632000,-741.37232016,9.718e-05,2]
[424930350,1781286632000,-741.37232016,9.718e-05,2]
[424930348,1781286632000,-741.37232016,9.718e-05,2]
[424930347,1781286632000,-741.37232016,9.718e-05,2]
[424930351,1781286632000,-741.37232016,9.718e-05,2]
[424930316,1781286632000,-748.6170008,9.718e-05,2]
[424930343,1781286632000,-741.37232016,9.718e-05,2]
[424930335,1781286632000,-741.37232016,9.718e-05,2]
[424930338,1781286632000,-741.37232016,9.718e-05,2]
[424930342,1781286632000,-741.37232016,9.718e-05,2]
[424930317,1781286632000,-748.6170008,9.718e-05,2]
[424930320,1781286632000,-748.6170008,9.718e-05,2]
[424930322,1781286632000,-748.6170008,9.718e-05,2]
[424930321,1781286632000,-748.6170008,9.718e-05,2]
[424930341,1781286632000,-741.37232016,9.718e-05,2]
[424930324,1781286632000,-748.6170008,9.718e-05,2]
[424930325,1781286632000,-748.6170008,9.718e-05,2]
[424930326,1781286632000,-748.6170008,9.718e-05,2]
[424930327,1781286632000,-748.6170008,9.718e-05,2]
[424930323,1781286632000,-748.6170008,9.718e-05,2]
[424930331,1781286632000,-741.37232016,9.718e-05,2]
[424930333,1781286632000,-741.37232016,9.718e-05,2]
[424930332,1781286632000,-741.37232016,9.718e-05,2]
[424930328,1781286632000,-741.37232016,9.718e-05,2]
[424930329,1781286632000,-741.37232016,9.718e-05,2]
[424930334,1781286632000,-741.37232016,9.718e-05,2]
[424930340,1781286632000,-741.37232016,9.718e-05,2]
[424930330,1781286632000,-741.37232016,9.718e-05,2]
[424930361,1781286633000,-500.0,9.718e-05,2]
[424930360,1781286633000,-500.0,9.718e-05,2]
[424930359,1781286633000,-500.0,9.718e-05,2]
[424930366,1781286633000,-1784.65648339,9.793e-05,2]
[424930363,1781286633000,-500.0,9.72e-05,2]
[424930365,1781286633000,-559.43,9.779e-05,2]
[424930364,1781286633000,-4490.23,9.721e-05,2]
[424930357,1781286633000,-500.0,9.718e-05,2]
[424930367,1781286633000,-4709.73669568,9.793e-05,2]
[424930358,1781286633000,-170.64561692,9.718e-05,2]
[424930375,1781286633000,-3855.6342,9.894e-05,2]
[424930362,1781286633000,-182.82050693,9.718e-05,2]
[424930373,1781286633000,-8055.38453985,9.83e-05,2]
[424930376,1781286633000,-27674.38725597,9.894e-05,2]
[424930368,1781286633000,-8308.53379411,9.793e-05,2]
[424930374,1781286633000,-3158.3392,9.894e-05,2]
[424930369,1781286633000,-12429.06965522,9.793e-05,2]
[424930370,1781286633000,-649.117,9.796e-05,2]
[424930371,1781286633000,-1300.0,9.8e-05,3]
[424930372,1781286633000,-150.0,9.816e-05,2]
[424930377,1781286633000,-1643.28648699,9.894e-05,2]
[424930379,1781286633000,-387.87639745,9.894e-05,2]
[424930378,1781286633000,-393.65793022,9.894e-05,2]
[424930381,1781286633000,-383.058,9.894e-05,2]
[424930380,1781286633000,-3451.35597532,9.894e-05,2]
[424930671,1781286653000,-1425.08,9.894e-05,2]
[424930674,1781286653000,-302.74662195,9.894e-05,2]
[424930673,1781286653000,-364.36298507,9.894e-05,2]
[424930672,1781286653000,-2869.44374755,9.894e-05,2]
[424930701,1781286674000,-2100.0,0.0001,3]
[424930705,1781286674000,-5530.0,0.000102,3]
[424930698,1781286674000,-1286.89619659,9.995e-05,3]
[424930700,1781286674000,-262.44051586,9.995e-05,3]
[424930697,1781286674000,-14016.86184587,9.994e-05,2]
[424930699,1781286674000,-199.48738674,9.995e-05,3]
[424930702,1781286674000,-163.66,0.0001,2]
[424930707,1781286674000,-2021.12,0.00010278,2]
[424930711,1781286674000,-250.0,0.00010438,2]
[424930706,1781286674000,-973.4,0.00010238,2]
[424930708,1781286674000,-4000.0,0.00010395,2]
[424930703,1781286674000,-160.0,0.00010023,2]
[424930712,1781286674000,-500.0,0.00010438,2]
[424930710,1781286674000,-300.0,0.00010438,2]
[424930709,1781286674000,-5530.0,0.000104,5]
[424930714,1781286674000,-990.78,0.00010632,2]
[424930723,1781286674000,-184.84,0.00010989,2]
[424930704,1781286674000,-2021.12,0.00010027,2]
[424930696,1781286674000,-1774.52414516,9.994e-05,2]
[424930688,1781286674000,-1500.0,9.994e-05,2]
[424930694,1781286674000,-685.67415838,9.994e-05,2]
[424930713,1781286674000,-2021.12,0.00010529,2]
[424930675,1781286674000,-2461104.74459948,9.894e-05,2]
[424930678,1781286674000,-5425.84674687,9.896e-05,2]
[424930676,1781286674000,-2500.0,9.896e-05,2]
[424930679,1781286674000,-177.57493216,9.896e-05,2]
[424930677,1781286674000,-1494574.15325313,9.896e-05,2]
[424930680,1781286674000,-2178.33740368,9.896e-05,2]
[424930681,1781286674000,-1700.0,9.9e-05,3]
[424930682,1781286674000,-196.0,9.913e-05,2]
[424930683,1781286674000,-465.71051319,9.994e-05,2]
[424930684,1781286674000,-5354.54752747,9.994e-05,2]
[424930685,1781286674000,-2261.99891123,9.994e-05,2]
[424930687,1781286674000,-1000.0,9.994e-05,2]
[424930686,1781286674000,-700.87783176,9.994e-05,2]
[424930690,1781286674000,-279.98838843,9.994e-05,2]
[424930691,1781286674000,-487.04,9.994e-05,2]
[424930689,1781286674000,-2486.09955218,9.994e-05,2]
[424930693,1781286674000,-899.90311098,9.994e-05,2]
[424930692,1781286674000,-2812.50005708,9.994e-05,2]
[424930695,1781286674000,-922.18333418,9.994e-05,2]
[424930716,1781286674000,-532.85,0.00010741,2]
[424930738,1781286674000,-7279.09027322,0.00011529,2]
[424930715,1781286674000,-250.0,0.0001069,2]
[424930739,1781286674000,-13484.06166383,0.00011529,2]
[424930743,1781286674000,-2210.95,0.00012055,2]
[424930745,1781286674000,-13484.06166383,0.00012074,2]
[424930741,1781286674000,-5946.37210313,0.00011954,2]
[424930742,1781286674000,-7077.74061418,0.00012,2]
[424930744,1781286674000,-7279.09027322,0.00012074,2]
[424930746,1781286674000,-16816.9716,0.00012293,2]
[424930749,1781286674000,-1190.08230904,0.00012329,2]
[424930737,1781286674000,-166.66,0.00011507,2]
[424930751,1781286674000,-151.0,0.00012385,2]
[424930756,1781286674000,-990.78,0.00012994,2]
[424930724,1781286674000,-2021.12,0.0001103,2]
[424930755,1781286674000,-168.42,0.00012798,2]
[424930754,1781286674000,-13484.06166383,0.00012618,2]
[424930757,1781286674000,-502.0,0.00013014,2]
[424930758,1781286674000,-7279.09027322,0.00013163,2]
[424930759,1781286674000,-13484.06166383,0.00013163,2]
[424930750,1781286674000,-150.0,0.00012341,2]
[424930752,1781286674000,-158.95,0.00012581,2]
[424930740,1781286674000,-990.78,0.00011813,2]
[424930753,1781286674000,-7279.09027322,0.00012618,2]
[424930747,1781286674000,-169.39,0.00012329,2]
[424930748,1781286674000,-198.34705151,0.00012329,2]
[424930717,1781286674000,-2021.12,0.00010779,2]
[424930718,1781286674000,-255.89408684,0.0001088,2]
[424930721,1781286674000,-150.0,0.00010959,2]
[424930722,1781286674000,-168.42,0.00010985,2]
[424930720,1781286674000,-166.66,0.00010959,2]
[424930726,1781286674000,-158.41,0.00011071,2]
[424930731,1781286674000,-7279.09027322,0.00011099,2]
[424930729,1781286674000,-13484.06166383,0.00011099,2]
[424930719,1781286674000,-5946.3721032,0.000109,2]
[424930727,1781286674000,-13484.06166385,0.00011099,2]
[424930736,1781286674000,-166.66,0.00011397,2]
[424930725,1781286674000,-166.66,0.00011068,2]
[424930728,1781286674000,-13484.06166383,0.00011099,2]
[424930734,1781286674000,-150.0,0.00011233,2]
[424930732,1781286674000,-7279.09027322,0.00011099,2]
[424930735,1781286674000,-166.66,0.00011288,2]
[424930730,1781286674000,-7279.09027325,0.00011099,2]
[424930733,1781286674000,-166.66,0.00011178,2]
[424930807,1781286675000,-500.0,0.00013699,2]
[424930801,1781286675000,-500.0,0.00013699,2]
[424930800,1781286675000,-500.0,0.00013699,2]
[424930793,1781286675000,-500.0,0.00013699,2]
[424930791,1781286675000,-500.0,0.00013699,2]
[424930789,1781286675000,-500.0,0.00013699,2]
[424930792,1781286675000,-500.0,0.00013699,2]
[424930790,1781286675000,-500.0,0.00013699,2]
[424930785,1781286675000,-500.0,0.00013699,2]
[424930803,1781286675000,-500.0,0.00013699,2]
[424930794,1781286675000,-500.0,0.00013699,2]
[424930798,1781286675000,-500.0,0.00013699,2]
[424930808,1781286675000,-500.0,0.00013699,2]
[424930804,1781286675000,-500.0,0.00013699,2]
[424930805,1781286675000,-500.0,0.00013699,2]
[424930806,1781286675000,-500.0,0.00013699,2]
[424930802,1781286675000,-500.0,0.00013699,2]
[424930799,1781286675000,-500.0,0.00013699,2]
[424930813,1781286675000,-500.0,0.00013699,2]
[424930815,1781286675000,-500.0,0.00013699,2]
[424930814,1781286675000,-500.0,0.00013699,2]
[424930817,1781286675000,-1779.30967572,0.00013699,2]
[424930816,1781286675000,-500.0,0.00013699,2]
[424930810,1781286675000,-500.0,0.00013699,2]
[424930788,1781286675000,-500.0,0.00013699,2]
[424930797,1781286675000,-500.0,0.00013699,2]
[424930787,1781286675000,-500.0,0.00013699,2]
[424930819,1781286675000,-1779.30967572,0.00013699,2]
[424930796,1781286675000,-500.0,0.00013699,2]
[424930760,1781286675000,-169.0,0.00013247,2]
[424930762,1781286675000,-169.0,0.00013247,2]
[424930770,1781286675000,-151.0,0.00013606,2]
[424930772,1781286675000,-2000.0,0.00013639,2]
[424930769,1781286675000,-2000.0,0.00013599,2]
[424930761,1781286675000,-169.0,0.00013247,2]
[424930764,1781286675000,-169.0,0.00013247,2]
[424930766,1781286675000,-169.0,0.00013247,2]
[424930765,1781286675000,-169.0,0.00013247,2]
[424930763,1781286675000,-169.0,0.00013247,2]
[424930767,1781286675000,-169.0,0.00013247,2]
[424930771,1781286675000,-500.0,0.00013639,2]
[424930795,1781286675000,-500.0,0.00013699,2]
[424930768,1781286675000,-1190.08230904,0.00013397,2]
[424930776,1781286675000,-457.0,0.00013675,2]
[424930777,1781286675000,-1574.78,0.00013699,2]
[424930775,1781286675000,-450.0,0.00013675,2]
[424930778,1781286675000,-500.0,0.00013699,2]
[424930784,1781286675000,-500.0,0.00013699,2]
[424930774,1781286675000,-455.0,0.00013675,2]
[424930782,1781286675000,-500.0,0.00013699,2]
[424930781,1781286675000,-500.0,0.00013699,2]
[424930779,1781286675000,-200.0,0.00013699,2]
[424930780,1781286675000,-500.0,0.00013699,2]
[424930783,1781286675000,-500.0,0.00013699,2]
[424930786,1781286675000,-500.0,0.00013699,2]
[424930773,1781286675000,-198.34705151,0.00013664,2]
[424930809,1781286675000,-500.0,0.00013699,2]
[424930833,1781286675000,-1779.30967572,0.00013699,2]
[424930812,1781286675000,-500.0,0.00013699,2]
[424930850,1781286675000,-1779.30967572,0.00013699,2]
[424930845,1781286675000,-1779.30967572,0.00013699,2]
[424930851,1781286675000,-1779.30967572,0.00013699,2]
[424930849,1781286675000,-1779.30967572,0.00013699,2]
[424930852,1781286675000,-1779.30967572,0.00013699,2]
[424930854,1781286675000,-1712.32389969,0.00013699,2]
[424930856,1781286675000,-1712.32389969,0.00013699,2]
[424930866,1781286675000,-1712.32389969,0.00013699,2]
[424930861,1781286675000,-1712.32389969,0.00013699,2]
[424930858,1781286675000,-1712.32389969,0.00013699,2]
[424930859,1781286675000,-1712.32389969,0.00013699,2]
[424930855,1781286675000,-1712.32389969,0.00013699,2]
[424930853,1781286675000,-1712.32389969,0.00013699,2]
[424930860,1781286675000,-1712.32389969,0.00013699,2]
[424930863,1781286675000,-1712.32389969,0.00013699,2]
[424930864,1781286675000,-1712.32389969,0.00013699,2]
[424930865,1781286675000,-1712.32389969,0.00013699,2]
[424930862,1781286675000,-1712.32389969,0.00013699,2]
[424930867,1781286675000,-1712.32389969,0.00013699,2]
[424930874,1781286675000,-5946.37210313,0.00014111,2]
[424930868,1781286675000,-1712.32389969,0.00013699,2]
[424930871,1781286675000,-7279.09027322,0.00013707,2]
[424930869,1781286675000,-1712.32389969,0.00013699,2]
[424930870,1781286675000,-634.37,0.000137,2]
[424930875,1781286675000,-160.224149,0.00014124,7]
[424930872,1781286675000,-13484.06166383,0.00013707,2]
[424930857,1781286675000,-1712.32389969,0.00013699,2]
[424930847,1781286675000,-1779.30967572,0.00013699,2]
[424930818,1781286675000,-1779.30967572,0.00013699,2]
[424930848,1781286675000,-1779.30967572,0.00013699,2]
[424930846,1781286675000,-1779.30967572,0.00013699,2]
[424930811,1781286675000,-500.0,0.00013699,2]
[424930821,1781286675000,-1779.30967572,0.00013699,2]
[424930825,1781286675000,-1779.30967572,0.00013699,2]
[424930830,1781286675000,-1779.30967572,0.00013699,2]
[424930829,1781286675000,-1779.30967572,0.00013699,2]
[424930831,1781286675000,-1779.30967572,0.00013699,2]
[424930822,1781286675000,-1779.30967572,0.00013699,2]
[424930828,1781286675000,-1779.30967572,0.00013699,2]
[424930823,1781286675000,-1779.30967572,0.00013699,2]
[424930826,1781286675000,-1779.30967572,0.00013699,2]
[424930824,1781286675000,-1779.30967572,0.00013699,2]
[424930827,1781286675000,-1779.30967572,0.00013699,2]
[424930820,1781286675000,-1779.30967572,0.00013699,2]
[424930843,1781286675000,-1779.30967572,0.00013699,2]
[424930873,1781286675000,-216.99007,0.00013967,2]
[424930844,1781286675000,-1779.30967572,0.00013699,2]
[424930839,1781286675000,-1779.30967572,0.00013699,2]
[424930841,1781286675000,-1779.30967572,0.00013699,2]
[424930842,1781286675000,-1779.30967572,0.00013699,2]
[424930836,1781286675000,-1779.30967572,0.00013699,2]
[424930837,1781286675000,-1779.30967572,0.00013699,2]
[424930835,1781286675000,-1779.30967572,0.00013699,2]
[424930840,1781286675000,-1779.30967572,0.00013699,2]
[424930838,1781286675000,-1779.30967572,0.00013699,2]
[424930832,1781286675000,-1779.30967572,0.00013699,2]
[424930834,1781286675000,-1779.30967572,0.00013699,2]
[424930894,1781286676000,-2000.0,0.000146,2]
[424930900,1781286676000,-725.0,0.00014726,2]
[424930895,1781286676000,-151.0,0.0001463,2]
[424930893,1781286676000,-247.405221,0.00014573,2]
[424930898,1781286676000,-11281.17279581,0.000147,2]
[424930899,1781286676000,-11739.4761173,0.000147,2]
[424930902,1781286676000,-725.0,0.00014726,2]
[424930910,1781286676000,-10000.0,0.0001476,2]
[424930909,1781286676000,-151.0,0.00014757,2]
[424930907,1781286676000,-725.0,0.00014726,2]
[424930905,1781286676000,-725.0,0.00014726,2]
[424930904,1781286676000,-725.0,0.00014726,2]
[424930911,1781286676000,-30000.0,0.0001476,2]
[424930903,1781286676000,-725.0,0.00014726,2]
[424930896,1781286676000,-444.0,0.00014631,2]
[424930901,1781286676000,-725.0,0.00014726,2]
[424930892,1781286676000,-322.523694,0.00014573,2]
[424930879,1781286676000,-500.0,0.00014232,2]
[424930891,1781286676000,-168.331692,0.000145,2]
[424930877,1781286676000,-500.0,0.00014231,2]
[424930878,1781286676000,-360.35654585,0.00014232,2]
[424930876,1781286676000,-990.78,0.00014176,2]
[424930908,1781286676000,-809.242,0.00014726,2]
[424930885,1781286676000,-350.0,0.00014275,2]
[424930887,1781286676000,-350.0,0.00014376,2]
[424930888,1781286676000,-1500.0,0.00014428,2]
[424930886,1781286676000,-350.0,0.00014313,2]
[424930889,1781286676000,-500.0,0.00014451,2]
[424930884,1781286676000,-336.26,0.00014264,2]
[424930880,1781286676000,-500.0,0.00014232,2]
[424930881,1781286676000,-500.0,0.00014232,2]
[424930882,1781286676000,-7279.09027322,0.00014252,2]
[424930883,1781286676000,-13484.06166383,0.00014252,2]
[424930890,1781286676000,-500.0,0.00014451,2]
[424930897,1781286676000,-350.0,0.00014698,2]
[424930906,1781286676000,-725.0,0.00014726,2]
[424930912,1781286676000,-151.0,0.0001476,2]
[424930945,1781286676000,-145784.43317165,0.00014896,2]
[424930930,1781286676000,-6111.0,0.00014873,2]
[424930935,1781286676000,-7065.0985903,0.00014886,2]
[424930938,1781286676000,-151.0,0.00014893,2]
[424930936,1781286676000,-6262.3075662,0.00014888,2]
[424930939,1781286676000,-300.0,0.00014895,2]
[424930941,1781286676000,-300.0,0.00014895,2]
[424930940,1781286676000,-300.0,0.00014895,2]
[424930931,1781286676000,-57343.6472208,0.00014884,2]
[424930942,1781286676000,-702.55853752,0.00014895,2]
[424930944,1781286676000,-52679.78164807,0.00014896,2]
[424930914,1781286676000,-151.0,0.0001476,2]
[424930946,1781286676000,-1630.0,0.00014896,2]
[424930947,1781286676000,-2080.89868918,0.00014896,2]
[424930948,1781286676000,-5845.43332265,0.00014896,2]
[424930949,1781286676000,-151.0,0.00014896,2]
[424930950,1781286676000,-151.0,0.00014896,2]
[424930943,1781286676000,-542842.67389355,0.00014896,2]
[424930929,1781286676000,-2332.0,0.00014869,5]
[424930937,1781286676000,-2355.0328635,0.00014891,2]
[424930927,1781286676000,-458.91009403,0.00014868,2]
[424930916,1781286676000,-7279.09027322,0.00014796,2]
[424930915,1781286676000,-151.0,0.0001476,2]
[424930928,1781286676000,-2738.0,0.00014869,5]
[424930922,1781286676000,-200.0,0.0001485,2]
[424930913,1781286676000,-151.0,0.0001476,2]
[424930921,1781286676000,-2521.02464031,0.00014822,2]
[424930920,1781286676000,-2664.0,0.000148,2]
[424930919,1781286676000,-10000.0,0.000148,2]
[424930917,1781286676000,-13484.06166383,0.00014796,2]
[424930924,1781286676000,-1100.49899,0.0001485,2]
[424930932,1781286676000,-151.0,0.00014884,2]
[424930934,1781286676000,-151.0,0.00014884,2]
[424930933,1781286676000,-151.0,0.00014884,2]
[424930923,1781286676000,-1100.49898,0.0001485,2]
[424930925,1781286676000,-1100.49899,0.0001486,2]
[424930926,1781286676000,-150.0,0.00014862,2]
[424930918,1781286676000,-2000.0,0.00014797,7]
[424930966,1781286677000,-324.43791965,0.00014899,2]
[424930963,1781286677000,-500.0,0.00014899,2]
[424930962,1781286677000,-500.0,0.00014899,2]
[424930964,1781286677000,-500.0,0.00014899,2]
[424930971,1781286677000,-500.0,0.00014899,2]
[424930979,1781286677000,-500.0,0.00014899,2]
[424930978,1781286677000,-500.0,0.00014899,2]
[424930976,1781286677000,-500.0,0.00014899,2]
[424930970,1781286677000,-500.0,0.00014899,2]
[424930981,1781286677000,-1.0401172,0.00014899,2]
[424930965,1781286677000,-500.0,0.00014899,2]
[424930977,1781286677000,-500.0,0.00014899,2]
[424930967,1781286677000,-500.0,0.00014899,2]
[424930980,1781286677000,-500.0,0.00014899,2]
[424930960,1781286677000,-500.0,0.00014899,2]
[424930968,1781286677000,-630.23809903,0.00014899,2]
[424930969,1781286677000,-500.0,0.00014899,2]
[424930959,1781286677000,-500.0,0.00014899,2]
[424930956,1781286677000,-151.0,0.00014896,2]
[424930955,1781286677000,-151.0,0.00014896,2]
[424930954,1781286677000,-151.0,0.00014896,2]
[424930953,1781286677000,-67.21166554,0.00014896,2]
[424930958,1781286677000,-500.0,0.00014899,2]
[424930957,1781286677000,-500.0,0.00014899,2]
[424930951,1781286677000,-151.0,0.00014896,2]
[424930952,1781286677000,-83.78833446,0.00014896,2]
[424930961,1781286677000,-500.0,0.00014899,2]
[424930973,1781286677000,-500.0,0.00014899,2]
[424930982,1781286677000,-427.87278049,0.00014899,2]
[424930972,1781286677000,-500.0,0.00014899,2]
[424931007,1781286677000,-1363.6285167,0.00014999,5]
[424931006,1781286677000,-300.0,0.00014998,2]
[424931004,1781286677000,-1555.5,0.00014976,2]
[424931005,1781286677000,-300.0,0.00014998,2]
[424931003,1781286677000,-338.79408863,0.00014966,2]
[424931000,1781286677000,-350.0,0.00014942,2]
[424930993,1781286677000,-2000.0,0.00014908,2]
[424931002,1781286677000,-419.79305075,0.00014966,2]
[424931001,1781286677000,-431.84226118,0.00014947,2]
[424930997,1781286677000,-200.0,0.00014908,2]
[424930999,1781286677000,-399.9292774,0.00014932,2]
[424930995,1781286677000,-151.0,0.00014908,2]
[424930994,1781286677000,-200.0,0.00014908,2]
[424930998,1781286677000,-200.0,0.00014908,2]
[424930996,1781286677000,-151.0,0.00014908,2]
[424930974,1781286677000,-500.0,0.00014899,2]
[424931008,1781286677000,-1756.04758219,0.00014999,2]
[424930985,1781286677000,-500.0,0.00014899,2]
[424930992,1781286677000,-450.0,0.00014908,2]
[424930987,1781286677000,-500.0,0.00014899,2]
[424930988,1781286677000,-500.0,0.00014899,2]
[424930984,1781286677000,-500.0,0.00014899,2]
[424930983,1781286677000,-71.08710231,0.00014899,2]
[424930986,1781286677000,-500.0,0.00014899,2]
[424930990,1781286677000,-287.06193287,0.00014899,2]
[424930991,1781286677000,-400.0,0.000149,5]
[424930989,1781286677000,-500.0,0.00014899,2]
[424930975,1781286677000,-500.0,0.00014899,2]
[424931009,1781286701000,-160.0,0.00010025,2]
[424931010,1781286703000,200.0,9.912e-05,7]
[424931011,1781286728000,-2000.0,9.794e-05,2]
[424931013,1781286750000,-879.74782015,9.619e-05,2]
[424931014,1781286774000,-879.74782015,9.619e-05,2]
[424931015,1781286910000,-519.293,9.427e-05,2]
[424931017,1781286932000,-200.0,9.619e-05,2]
[424931016,1781286932000,-300.0,9.617e-05,2]
[424931018,1781286963000,-500.0,9.617e-05,2]